bitfinex/quotes_BTCUSD_20260103
["timestamp","ask_amount","ask_price","bid_price","bid_amount"]
[1767429968987,0.01113325,89821.0,89816.0,0.01113387]
[1767429969441,0.01113337,89820.0,89815.0,0.01113399]
[1767429969783,0.01113312,89822.0,89816.0,0.01113387]
[1767429969983,0.01113337,89820.0,89815.0,0.01113399]
[1767429970559,0.01113337,89820.0,89814.0,0.02129512]
[1767429971352,0.01113362,89818.0,89814.0,0.010161]
[1767429971802,0.01113374,89817.0,89814.0,0.010161]
[1767429972924,0.05567184,89813.0,89812.0,0.01116]
[1767429973524,0.01113412,89814.0,89812.0,0.01116]
[1767429973725,0.06680522,89814.0,89812.0,0.01116]
[1767429974115,0.01113412,89814.0,89812.0,0.01116]
[1767429974946,0.01113399,89815.0,89814.0,0.000999]
[1767429975399,0.01113399,89815.0,89812.0,0.01116]
[1767429975601,0.06680439,89815.0,89812.0,0.01116]
[1767429975803,0.05567104,89814.0,89812.0,0.01116]
[1767429978068,0.01113436,89812.0,89810.0,0.01116]
[1767429978472,0.01113424,89813.0,89810.0,0.01029891]
[1767429979482,0.06680439,89815.0,89810.0,0.00972478]
[1767429979684,0.06680439,89815.0,89813.0,0.000999]
[1767429980087,0.06680439,89815.0,89810.0,0.00972478]
[1767429980534,0.01113399,89815.0,89810.0,0.02085939]
[1767429980710,0.01113412,89814.0,89810.0,0.00972478]
[1767429980913,0.01113424,89813.0,89810.0,0.00972478]
[1767429981234,0.01113412,89814.0,89810.0,0.00972478]
[1767429981583,0.01113424,89813.0,89810.0,0.00972478]
[1767429984057,0.06680571,89813.0,89810.0,0.00671963]
[1767429985228,0.01113424,89813.0,89810.0,0.00671963]
[1767429985439,0.0668055,89813.0,89810.0,0.00671963]
[1767429985583,0.06680595,89813.0,89810.0,0.00671963]
[1767429986474,0.01113424,89813.0,89810.0,0.00671963]
[1767429986878,0.01113486,89808.0,89795.0,0.13393474]
[1767429987083,0.01113548,89803.0,89796.0,0.01116]
[1767429987326,0.01113548,89803.0,89797.0,0.01113622]
[1767429987327,0.01013648,89803.0,89797.0,0.01113622]
[1767429987516,0.01013648,89803.0,89796.0,0.02229635]
[1767429987838,0.01113536,89804.0,89799.0,0.01113598]
[1767429988066,0.01113548,89803.0,89798.0,0.0111361]
[1767429988209,0.01113536,89804.0,89798.0,0.0111361]
[1767429988996,0.01113498,89807.0,89799.0,0.01113598]
[1767429989399,0.01113498,89807.0,89800.0,0.01113585]
[1767429989615,0.22265969,89824.0,89798.0,0.05568052]
[1767429989821,0.05566757,89819.0,89810.0,0.06680707]
[1767429990110,0.01116,89818.0,89816.0,0.01113387]
[1767429990259,0.01113312,89822.0,89815.0,0.13408739]
[1767429990455,0.01113312,89822.0,89817.0,0.01113374]
[1767429990684,0.01113312,89822.0,89815.0,0.13408739]
[1767429990685,0.01113325,89821.0,89815.0,0.13408739]
[1767429990885,0.01113325,89821.0,89816.0,0.01113387]
[1767429991190,0.01113312,89822.0,89817.0,0.01113374]
[1767429991410,0.01113337,89820.0,89815.0,0.13408739]
[1767429991817,0.01113337,89820.0,89815.0,0.01113399]
[1767429992227,0.0111335,89819.0,89814.0,0.01113412]
[1767429992572,0.01113337,89820.0,89814.0,0.01113412]
[1767429992775,0.0111335,89819.0,89814.0,0.01113412]
[1767429992988,0.01113337,89820.0,89814.0,0.01113412]
[1767429993161,0.01113325,89821.0,89815.0,0.01113399]
[1767429993359,0.0111335,89819.0,89813.0,0.01113424]
[1767429993565,0.000999,89815.0,89813.0,0.01113424]
[1767429993720,0.000999,89815.0,89810.0,0.01113461]
[1767429993721,0.01113399,89815.0,89810.0,0.01113461]
[1767429993926,0.01113449,89811.0,89805.0,0.01113523]
[1767429994223,0.01113498,89807.0,89802.0,0.0111356]
[1767429994448,0.01113486,89808.0,89804.0,0.01116]
[1767429995056,0.01113498,89807.0,89804.0,0.01116]
[1767429995375,0.01113461,89810.0,89804.0,0.01116]
[1767429995710,0.01113474,89809.0,89804.0,0.02229536]
[1767429995953,0.01113474,89809.0,89804.0,0.01116]
[1767429996195,0.01113474,89809.0,89804.0,0.02229536]
[1767429996313,0.01113486,89808.0,89804.0,0.01116]
[1767429996513,0.01113474,89809.0,89804.0,0.01116]
[1767429996755,0.01113474,89809.0,89804.0,0.02229536]
[1767429996973,0.01113461,89810.0,89805.0,0.01113523]
[1767429997191,0.01113474,89809.0,89804.0,0.02229536]
[1767429997399,0.01113461,89810.0,89805.0,0.01113523]
[1767429997606,0.01113474,89809.0,89804.0,0.02229536]
[1767429998058,0.01113486,89808.0,89804.0,0.01116]
[1767429998254,0.01113474,89809.0,89804.0,0.02229536]
[1767429998893,0.05567184,89813.0,89805.0,0.01113523]
[1767429999335,0.01113436,89812.0,89806.0,0.01113511]
[1767429999532,0.0668066,89812.0,89804.0,0.02229536]
[1767429999729,0.01113461,89810.0,89805.0,0.01113523]
[1767429999892,0.01113461,89810.0,89804.0,0.02229536]
[1767430000899,0.01113474,89809.0,89804.0,0.02229536]
[1767430001309,0.01113486,89808.0,89804.0,0.01116]
[1767430001511,0.01113474,89809.0,89804.0,0.02229536]
[1767430001787,0.01113461,89810.0,89805.0,0.01113523]
[1767430002713,0.01113449,89811.0,89805.0,0.01113523]
[1767430003345,0.01113449,89811.0,89806.0,0.01113511]
[1767430003537,0.01113449,89811.0,89805.0,0.01113523]
[1767430003739,0.01113461,89810.0,89805.0,0.01113523]
[1767430004523,0.01113474,89809.0,89804.0,0.02229536]
[1767430005099,0.01113461,89810.0,89805.0,0.01113523]
[1767430006438,0.01113474,89809.0,89804.0,0.02229536]
[1767430006953,0.01113449,89811.0,89805.0,0.01113523]
[1767430007826,0.01113449,89811.0,89806.0,0.01113511]
[1767430008007,0.01113461,89810.0,89804.0,0.02229536]
[1767430008216,0.01113474,89809.0,89804.0,0.02229536]
[1767430008551,0.01113461,89810.0,89805.0,0.01113523]
[1767430010048,0.01113436,89812.0,89806.0,0.01113511]
[1767430010257,0.01113449,89811.0,89806.0,0.01113511]
[1767430010915,0.01113461,89810.0,89805.0,0.01113523]
[1767430011129,0.01113449,89811.0,89806.0,0.01113511]
[1767430011332,0.01113461,89810.0,89805.0,0.01113523]
[1767430011538,0.01113449,89811.0,89806.0,0.01113511]
[1767430011739,0.01113449,89811.0,89805.0,0.01113523]
[1767430011944,0.01113449,89811.0,89806.0,0.01113511]
[1767430012150,0.01113461,89810.0,89805.0,0.01113523]
[1767430012355,0.01113461,89810.0,89804.0,0.02229536]
[1767430012534,0.01113461,89810.0,89805.0,0.01113523]
[1767430013718,0.01113461,89810.0,89803.0,0.05040926]
[1767430013922,0.01113474,89809.0,89803.0,0.02229548]
[1767430014131,0.01113474,89809.0,89804.0,0.01113536]
[1767430016224,0.01113436,89812.0,89806.0,0.01113511]
[1767430016785,0.01113436,89812.0,89807.0,0.01113498]
[1767430017280,0.01113424,89813.0,89807.0,0.01113498]
[1767430017496,0.01113424,89813.0,89808.0,0.01113486]
[1767430017697,0.01113424,89813.0,89807.0,0.01113498]
[1767430017909,0.01113424,89813.0,89808.0,0.01113486]
[1767430018338,0.01113424,89813.0,89807.0,0.01113498]
[1767430019048,0.01113424,89813.0,89806.0,0.01113511]
[1767430019398,0.01113436,89812.0,89806.0,0.01113511]
[1767430020221,0.01113424,89813.0,89807.0,0.01113498]
[1767430020428,0.01113461,89810.0,89805.0,0.01113523]
[1767430020998,0.01113449,89811.0,89806.0,0.01113511]
[1767430021217,0.01113449,89811.0,89803.0,0.06683693]
[1767430021218,0.000999,89806.0,89803.0,0.06683693]
[1767430021427,0.01113449,89811.0,89803.0,0.07797241]
[1767430021966,0.01113449,89811.0,89806.0,0.01113511]
[1767430022170,0.01113436,89812.0,89807.0,0.01113498]
[1767430022394,0.01113424,89813.0,89807.0,0.01113498]
[1767430022979,0.01113436,89812.0,89807.0,0.01113498]
[1767430024039,0.05566983,89816.0,89807.0,0.06680973]
[1767430024276,0.01113424,89813.0,89807.0,0.06680973]
[1767430024482,0.01113399,89815.0,89809.0,0.01113474]
[1767430024710,0.01113399,89815.0,89807.0,0.01113498]
[1767430024711,0.01113424,89813.0,89807.0,0.01113498]
[1767430024932,0.01113436,89812.0,89807.0,0.01113498]
[1767430025543,0.01113449,89811.0,89806.0,0.01113511]
[1767430026161,0.06680427,89815.0,89807.0,0.01113498]
[1767430026290,0.01113436,89812.0,89807.0,0.01113498]
[1767430026511,0.06680427,89815.0,89809.0,0.01113474]
[1767430026710,0.01113412,89814.0,89808.0,0.01113486]
[1767430026897,0.01113399,89815.0,89809.0,0.01113474]
[1767430027346,0.01113399,89815.0,89810.0,0.01113461]
[1767430027524,0.01113412,89814.0,89809.0,0.01113474]
[1767430028298,0.01113399,89815.0,89810.0,0.01113461]
[1767430028504,0.01113412,89814.0,89809.0,0.01113474]
[1767430028901,0.01113399,89815.0,89810.0,0.01113461]
[1767430029021,0.01113412,89814.0,89809.0,0.01113474]
[1767430029219,0.01113399,89815.0,89810.0,0.01113461]
[1767430029879,0.01113387,89816.0,89811.0,0.01113449]
[1767430030148,0.05566918,89817.0,89811.0,0.01113449]
[1767430030149,0.01113374,89817.0,89811.0,0.06680677]
[1767430030279,0.01113374,89817.0,89811.0,0.01113449]
[1767430030919,0.01113399,89815.0,89810.0,0.01113461]
[1767430031162,0.01113412,89814.0,89809.0,0.01113474]
[1767430031742,0.01113436,89812.0,89807.0,0.01113498]
[1767430031894,0.000999,89809.0,89806.0,0.01113511]
[1767430032100,0.01113436,89812.0,89807.0,0.01113498]
[1767430032514,0.01113424,89813.0,89808.0,0.01113486]
[1767430032698,0.01113436,89812.0,89807.0,0.01113498]
[1767430032900,0.01113412,89814.0,89807.0,0.01113498]
[1767430033172,0.01113436,89812.0,89808.0,0.01113486]
[1767430033476,0.01113412,89814.0,89808.0,0.01113486]
[1767430033879,0.01113436,89812.0,89806.0,0.01113511]
[1767430034066,0.01113436,89812.0,89807.0,0.01113498]
[1767430034480,0.01113251,89827.0,89818.0,0.05566768]
[1767430034698,0.01113251,89827.0,89813.0,0.12467374]
[1767430034699,0.01044117,89826.0,89820.0,0.01113337]
[1767430034907,0.14320801,89826.0,89821.0,0.01113325]
[1767430035109,0.14320801,89826.0,89822.0,0.01113312]
[1767430035327,0.14320801,89826.0,89821.0,0.01113325]
[1767430035538,0.14320801,89826.0,89823.0,0.06679803]
[1767430035968,0.01116,89826.0,89822.0,0.01113312]
[1767430036156,0.01116,89826.0,89823.0,0.011133]
[1767430038437,0.01116,89826.0,89822.0,0.01113312]
[1767430038777,0.01116,89826.0,89823.0,0.011133]
[1767430039993,0.13204801,89823.0,89793.0,0.22272707]
[1767430040192,0.13204801,89823.0,89790.0,0.1459]
[1767430040193,0.000999,89823.0,89818.0,0.01113362]
[1767430040397,0.01113275,89825.0,89818.0,0.01113362]
[1767430040751,0.011133,89823.0,89817.0,0.01113374]
[1767430040864,0.011133,89823.0,89818.0,0.01113362]
[1767430041077,0.02229263,89826.0,89818.0,0.06680169]
[1767430041277,0.02229263,89826.0,89819.0,0.0111335]
[1767430041745,0.02229263,89826.0,89821.0,0.01113325]
[1767430041963,0.01113275,89825.0,89820.0,0.01113337]
[1767430042374,0.01113275,89825.0,89819.0,0.0111335]
[1767430042769,0.01113275,89825.0,89820.0,0.01113337]
[1767430043946,0.01113275,89825.0,89819.0,0.0111335]
[1767430044148,0.01113275,89825.0,89820.0,0.01113337]
[1767430044354,0.01113275,89825.0,89819.0,0.0111335]
[1767430044553,0.01113288,89824.0,89818.0,0.01113362]
[1767430045510,0.011133,89823.0,89818.0,0.01113362]
[1767430045856,0.011133,89823.0,89817.0,0.01113374]
[1767430046855,0.011133,89823.0,89818.0,0.01113362]
[1767430047057,0.000999,89818.0,89817.0,0.01113374]
[1767430047482,0.01113288,89824.0,89818.0,0.01113362]
[1767430047680,0.01113275,89825.0,89819.0,0.0111335]
[1767430047909,0.02229263,89826.0,89819.0,0.0111335]
[1767430048116,0.01116,89826.0,89821.0,0.01113325]
[1767430048328,0.01113164,89834.0,89826.0,0.05566264]
[1767430048587,0.01116,89831.0,89826.0,0.01113263]
[1767430048797,0.02229201,89831.0,89825.0,0.01113275]
[1767430049214,0.01113226,89829.0,89822.0,0.01113312]
[1767430049417,0.02229201,89831.0,89823.0,0.011133]
[1767430049623,0.02229201,89831.0,89825.0,0.01113275]
[1767430049830,0.01116,89831.0,89827.0,0.01113251]
[1767430050052,0.01116,89831.0,89826.0,0.01113263]
[1767430050724,0.02229201,89831.0,89825.0,0.01113275]
[1767430051121,0.01116,89831.0,89826.0,0.01113263]
[1767430051272,0.02229201,89831.0,89824.0,0.01113288]
[1767430051477,0.02229201,89831.0,89825.0,0.01113275]
[1767430051686,0.01113213,89830.0,89824.0,0.01113288]
[1767430051914,0.01113226,89829.0,89823.0,0.011133]
[1767430052116,0.01113213,89830.0,89823.0,0.011133]
[1767430052117,0.01113213,89830.0,89825.0,0.01113275]
[1767430052315,0.01113213,89830.0,89824.0,0.01113288]
[1767430052527,0.07795266,89831.0,89817.0,0.01113374]
[1767430052528,0.01213188,89824.0,89817.0,0.01113374]
[1767430052736,0.01113288,89824.0,89817.0,0.01113374]
[1767430052935,0.01113288,89824.0,89816.0,0.01113387]
[1767430052936,0.01113312,89822.0,89816.0,0.01113387]
[1767430053110,0.01113337,89820.0,89814.0,0.02229412]
[1767430053317,0.0111335,89819.0,89814.0,0.010161]
[1767430053507,0.01113337,89820.0,89814.0,0.02129512]
[1767430053923,0.0111335,89819.0,89814.0,0.02129512]
[1767430054401,0.0111335,89819.0,89814.0,0.010161]
[1767430054605,0.01113362,89818.0,89814.0,0.010161]
[1767430054865,0.01113374,89817.0,89814.0,0.010161]
[1767430055046,0.06680236,89818.0,89814.0,0.010161]
[1767430055301,0.01113374,89817.0,89814.0,0.010161]
[1767430056223,0.01113374,89817.0,89812.0,0.01113436]
[1767430056426,0.01113374,89817.0,89812.0,0.01116]
[1767430056778,0.01113399,89815.0,89812.0,0.01116]
[1767430056979,0.01113387,89816.0,89812.0,0.01116]
[1767430057139,0.01113387,89816.0,89810.0,0.01113461]
[1767430057343,0.01113374,89817.0,89811.0,0.1544647]
[1767430057547,0.01113362,89818.0,89816.0,0.000999]
[1767430057748,0.01113374,89817.0,89811.0,0.1544647]
[1767430057944,0.01113374,89817.0,89812.0,0.01113436]
[1767430058366,0.01113362,89818.0,89812.0,0.01113436]
[1767430058367,0.01113362,89818.0,89813.0,0.01113424]
[1767430058587,0.01113374,89817.0,89812.0,0.01116]
[1767430058767,0.01113362,89818.0,89812.0,0.02229436]
[1767430059175,0.01113374,89817.0,89812.0,0.01113436]
[1767430059371,0.01113374,89817.0,89812.0,0.02229436]
[1767430059569,0.01113374,89817.0,89812.0,0.15446457]
[1767430059791,0.01113374,89817.0,89812.0,0.14330457]
[1767430060198,0.01113362,89818.0,89812.0,0.14330457]
[1767430060400,0.0111335,89819.0,89813.0,0.14330445]
[1767430060706,0.01113362,89818.0,89813.0,0.13217021]
[1767430060899,0.01113325,89821.0,89818.0,0.000999]
[1767430061122,0.06679972,89821.0,89818.0,0.000999]
[1767430061381,0.06679972,89821.0,89814.0,0.14330433]
[1767430061599,0.01113362,89818.0,89813.0,0.01113424]
[1767430061797,0.01113374,89817.0,89811.0,0.07796657]
[1767430061945,0.01113337,89820.0,89812.0,0.19897598]
[1767430062146,0.06679972,89821.0,89815.0,0.01113399]
[1767430062371,0.01113312,89822.0,89815.0,0.1433042]
[1767430062575,0.011133,89823.0,89821.0,0.000999]
[1767430063021,0.011133,89823.0,89817.0,0.01113374]
[1767430063179,0.011133,89823.0,89818.0,0.01113362]
[1767430063745,0.01113312,89822.0,89816.0,0.01113387]
[1767430064058,0.01113337,89820.0,89812.0,0.06680568]
[1767430064215,0.01113374,89817.0,89812.0,0.01113436]
[1767430064418,0.01113374,89817.0,89811.0,0.01113449]
[1767430064655,0.01113374,89817.0,89810.0,0.14330482]
[1767430064784,0.01113374,89817.0,89811.0,0.01113449]
[1767430065179,0.01113374,89817.0,89808.0,0.01113486]
[1767430065442,0.01113399,89815.0,89810.0,0.02229461]
[1767430065602,0.01113412,89814.0,89810.0,0.01116]
[1767430066156,0.01113399,89815.0,89810.0,0.01116]
[1767430066310,0.01113387,89816.0,89810.0,0.02229461]
[1767430066866,0.01113436,89812.0,89808.0,0.01116]
[1767430067476,0.01113424,89813.0,89812.0,0.000999]
[1767430067680,0.01113412,89814.0,89808.0,0.02229486]
[1767430067876,0.01113424,89813.0,89808.0,0.01116]
[1767430068414,0.01113424,89813.0,89808.0,0.02229486]
[1767430068620,0.01113362,89818.0,89813.0,0.01213324]
[1767430068828,0.06680055,89820.0,89813.0,0.14330445]
[1767430069027,0.02229288,89824.0,89818.0,0.01113362]
[1767430069366,0.01116,89824.0,89819.0,0.0111335]
[1767430069683,0.01116,89825.0,89822.0,0.01113312]
[1767430069894,0.01116,89825.0,89824.0,0.000999]
[1767430070320,0.01113238,89828.0,89823.0,0.011133]
[1767430070509,0.01113201,89831.0,89826.0,0.01113263]
[1767430070677,0.02229213,89830.0,89825.0,0.14330296]
[1767430070873,0.01116,89830.0,89826.0,0.01113263]
[1767430071121,0.01116,89830.0,89825.0,0.14330296]
[1767430071321,0.01111822,89830.0,89827.0,0.01113251]
[1767430071526,0.01111822,89830.0,89826.0,0.01113263]
[1767430071701,0.01116,89830.0,89826.0,0.01113263]
[1767430072199,0.01116,89830.0,89827.0,0.01113251]
[1767430072624,0.01116,89830.0,89825.0,0.01113275]
[1767430072842,0.01116,89830.0,89826.0,0.01113263]
[1767430073344,0.02229213,89830.0,89825.0,0.01113275]
[1767430073976,0.01113213,89830.0,89825.0,0.01113275]
[1767430074193,0.01113226,89829.0,89823.0,0.011133]
[1767430074401,0.01113226,89829.0,89824.0,0.01113288]
[1767430074639,0.01113213,89830.0,89825.0,0.01113275]
[1767430074889,0.01113213,89830.0,89824.0,0.01113288]
[1767430075305,0.01116,89831.0,89824.0,0.01113288]
[1767430075515,0.01116,89831.0,89826.0,0.01113263]
[1767430075720,4.39e-05,89834.0,89831.0,0.01213101]
[1767430075924,4.39e-05,89834.0,89831.0,0.14430122]
[1767430076130,4.39e-05,89834.0,89831.0,0.14330222]
[1767430076338,4.39e-05,89834.0,89831.0,0.01113201]
[1767430077393,9e-07,89834.0,89831.0,0.06679166]
[1767430077573,9e-07,89834.0,89831.0,0.01113201]
[1767430078357,9e-07,89834.0,89832.0,0.05565945]
[1767430078560,0.01113089,89840.0,89834.0,0.01113164]
[1767430079058,0.01113089,89840.0,89833.0,0.01113176]
[1767430079262,4.3e-05,89834.0,89833.0,0.01113176]
[1767430079814,0.01113102,89839.0,89834.0,0.01113164]
[1767430080168,0.01113102,89839.0,89833.0,0.01113176]
[1767430080369,0.05565247,89844.0,89834.0,0.06678982]
[1767430080552,0.05565247,89844.0,89834.0,0.01113164]
[1767430080553,0.01113102,89839.0,89834.0,0.01113164]
[1767430080752,0.22260078,89847.0,89840.0,0.01113089]
[1767430080753,0.0004,89843.0,89840.0,0.01113089]
[1767430080981,0.0004,89843.0,89838.0,0.01113114]
[1767430081538,0.0004,89843.0,89837.0,0.01113127]
[1767430081752,0.01153052,89843.0,89837.0,0.01113127]
[1767430082252,0.01113077,89841.0,89835.0,0.01113151]
[1767430082494,0.01113077,89841.0,89833.0,0.01113176]
[1767430082495,4.3e-05,89837.0,89833.0,0.01113176]
[1767430082698,0.01113127,89837.0,89832.0,0.01113189]
[1767430082903,0.01113127,89837.0,89831.0,0.01113201]
[1767430083111,0.01113114,89838.0,89831.0,0.01113201]
[1767430083280,4.3e-05,89831.0,89829.0,0.02229226]
[1767430083706,0.01113139,89836.0,89831.0,0.01113201]
[1767430083891,0.01113127,89837.0,89832.0,0.01113189]
[1767430084098,0.01113114,89838.0,89833.0,0.01113176]
[1767430084505,0.01113114,89838.0,89832.0,0.01113189]
[1767430084708,0.01113127,89837.0,89831.0,0.01113201]
[1767430085036,0.01113127,89837.0,89832.0,0.01113189]
[1767430085595,0.01113139,89836.0,89831.0,0.01113201]
[1767430086426,0.01113139,89836.0,89830.0,0.01113213]
[1767430087101,0.01113139,89836.0,89831.0,0.01113201]
[1767430087316,0.01113114,89838.0,89832.0,0.01113189]
[1767430087520,0.01113114,89838.0,89836.0,0.000956]
[1767430087905,0.01113114,89838.0,89833.0,0.01113176]
[1767430088568,0.01113127,89837.0,89832.0,0.01113189]
[1767430088789,0.01113114,89838.0,89832.0,0.01113189]
[1767430088987,0.01113114,89838.0,89833.0,0.01113176]
[1767430089221,0.01113139,89836.0,89831.0,0.01113201]
[1767430089402,0.01113114,89838.0,89832.0,0.01113189]
[1767430089620,0.01113077,89841.0,89836.0,0.13792324]
[1767430089834,0.01113102,89839.0,89836.0,0.000956]
[1767430090104,0.01113102,89839.0,89834.0,0.14809888]
[1767430090326,0.01113114,89838.0,89833.0,0.01113176]
[1767430090550,0.01113114,89838.0,89829.0,0.06682106]
[1767430090551,0.01113151,89835.0,89829.0,0.01116]
[1767430090799,0.01113251,89827.0,89823.0,0.13696724]
[1767430091005,0.05566317,89826.0,89823.0,0.0003586]
[1767430091220,0.05566432,89825.0,89823.0,1e-08]
[1767430105944,0.05566688,89820.0,89819.0,0.13696725]
[1767430106151,0.05566688,89820.0,89819.0,0.13732652]
[1767430108703,0.05566672,89821.0,89819.0,0.13732652]
[1767430109150,0.06679934,89822.0,89819.0,0.13732652]
[1767430112507,0.05566683,89821.0,89819.0,0.13732652]
[1767430113178,0.05566683,89821.0,89819.0,0.13728278]
[1767430114454,0.06679934,89822.0,89819.0,0.13728278]
[1767430116618,0.01113312,89822.0,89819.0,0.13728278]
[1767430117163,0.01113312,89822.0,89819.0,0.00035927]
[1767430118331,0.06679937,89822.0,89819.0,0.00035927]
[1767430118540,0.05566668,89821.0,89819.0,2.7e-07]
[1767430121156,0.06679937,89822.0,89819.0,2.7e-07]
[1767430121360,0.01113312,89822.0,89819.0,2.7e-07]
[1767430123086,0.06679915,89822.0,89819.0,2.7e-07]
[1767430123661,0.06679762,89824.0,89819.0,2.7e-07]
[1767430123804,0.01077412,89822.0,89819.0,2.7e-07]
[1767430124006,0.01077412,89822.0,89817.0,0.01113374]
[1767430124007,0.01113374,89817.0,89813.0,0.0108014]
[1767430124259,0.16298879,89821.0,89807.0,0.01116]
[1767430124260,0.01113449,89811.0,89807.0,0.01116]
[1767430124465,0.01113461,89810.0,89807.0,0.01151998]
[1767430124657,0.01113461,89810.0,89802.0,0.0111356]
[1767430124658,0.06680887,89809.0,89806.0,0.00015]
[1767430124916,0.06716789,89809.0,89806.0,0.00015]
[1767430125113,0.01113536,89804.0,89801.0,0.01116]
[1767430125353,0.05567742,89803.0,89801.0,0.01116]
[1767430125562,0.01113585,89800.0,89791.0,0.13985905]
[1767430125763,0.0111361,89798.0,89791.0,0.12872208]
[1767430125876,0.01113635,89796.0,89791.0,0.12872208]
[1767430126081,0.0111366,89794.0,89788.0,0.00015]
[1767430126281,0.0111366,89794.0,89789.0,0.01113722]
[1767430126482,0.01113647,89795.0,89789.0,0.01113722]
[1767430127110,0.10732253,89790.0,89788.0,1e-08]
[1767430127313,0.10732253,89790.0,89753.0,0.12872208]
[1767430127314,0.05569412,89777.0,89770.0,0.01131]
[1767430127510,0.000999,89789.0,89770.0,0.01131]
[1767430127511,0.01113908,89774.0,89770.0,0.01131]
[1767430128190,0.06683354,89776.0,89770.0,0.01131]
[1767430128367,0.00559745,89775.0,89770.0,0.01131]
[1767430128594,0.0111392,89773.0,89770.0,0.01131]
[1767430128792,0.01113908,89774.0,89770.0,0.01131]
[1767430129420,0.0111392,89773.0,89770.0,0.00015]
[1767430129637,0.01113908,89774.0,89770.0,0.00015]
[1767430130594,0.0111392,89773.0,89770.0,0.00015]
[1767430132770,0.0111392,89773.0,89764.0,0.06686104]
[1767430132771,0.01113957,89770.0,89764.0,0.02230032]
[1767430132971,0.01113933,89772.0,89766.0,0.01114007]
[1767430133138,0.01113933,89772.0,89767.0,0.01113995]
[1767430133341,0.01113933,89772.0,89766.0,0.01114007]
[1767430133663,0.01113933,89772.0,89767.0,0.01113995]
[1767430134562,0.01113957,89770.0,89764.0,0.02230032]
[1767430134994,0.01113957,89770.0,89765.0,0.01114019]
[1767430135166,0.01113945,89771.0,89765.0,0.01114019]
[1767430135373,0.01113945,89771.0,89766.0,0.01114007]
[1767430135841,0.0111392,89773.0,89771.0,0.00015]
[1767430136453,0.01113908,89774.0,89768.0,0.01113982]
[1767430137136,0.0111392,89773.0,89767.0,0.01113995]
[1767430137463,0.0111392,89773.0,89768.0,0.01113982]
[1767430137795,0.0111392,89773.0,89767.0,0.01113995]
[1767430137975,0.01113933,89772.0,89766.0,0.01114007]
[1767430138166,0.01113957,89770.0,89764.0,0.02230032]
[1767430138320,0.01113957,89770.0,89765.0,0.01114019]
[1767430138542,0.01113945,89771.0,89765.0,0.01114019]
[1767430138976,0.000849,89765.0,89764.0,0.01116]
[1767430139545,0.05570055,89766.0,89764.0,0.01116]
[1767430139746,0.05570055,89766.0,89759.0,0.01114094]
[1767430139946,0.01114032,89764.0,89758.0,0.02230106]
[1767430140170,0.01114032,89764.0,89759.0,0.01114094]
[1767430140922,0.01114019,89765.0,89760.0,0.01114081]
[1767430141127,0.01114032,89764.0,89759.0,0.01114094]
[1767430141489,0.000849,89759.0,89758.0,0.01116]
[1767430141695,0.000849,89759.0,89753.0,0.06684951]
[1767430141696,0.000849,89759.0,89754.0,0.01114156]
[1767430141951,0.01114106,89758.0,89753.0,0.01114168]
[1767430142150,0.06018557,89758.0,89753.0,0.01114168]
[1767430142382,0.04904451,89758.0,89754.0,0.01114156]
[1767430142573,0.06018557,89758.0,89753.0,0.01114168]
[1767430142778,0.06018557,89758.0,89752.0,0.06700039]
[1767430142779,0.01114119,89757.0,89752.0,0.01129181]
[1767430142943,0.01114094,89759.0,89754.0,0.01114156]
[1767430143599,0.01114081,89760.0,89754.0,0.01114156]
[1767430143854,0.01114094,89759.0,89753.0,0.01114168]
[1767430144139,0.01114106,89758.0,89752.0,0.0670007]
[1767430144280,0.01114081,89760.0,89753.0,0.01114168]
[1767430144486,0.01114081,89760.0,89755.0,0.01114144]
[1767430144898,0.01114069,89761.0,89755.0,0.01114144]
[1767430145101,0.01114081,89760.0,89755.0,0.01114144]
[1767430145299,0.01114094,89759.0,89754.0,0.01114156]
[1767430145499,0.01114081,89760.0,89754.0,0.01114156]
[1767430146083,0.01114094,89759.0,89753.0,0.01114168]
[1767430146250,0.01114119,89757.0,89752.0,0.01129181]
[1767430146814,0.01114119,89757.0,89752.0,0.00015]
[1767430147019,0.01114106,89758.0,89752.0,0.01129181]
[1767430147430,0.01114106,89758.0,89753.0,0.01114168]
[1767430147635,0.01114094,89759.0,89754.0,0.01114156]
[1767430147841,0.04904451,89759.0,89755.0,0.01114144]
[1767430148044,0.01114069,89761.0,89756.0,0.01114131]
[1767430148262,0.10732253,89759.0,89756.0,0.01114131]
[1767430148893,0.10732253,89759.0,89756.0,0.01029231]
[1767430149320,0.10732253,89759.0,89756.0,0.01114131]
[1767430149666,0.10732253,89759.0,89755.0,0.01114144]
[1767430150658,0.10732253,89759.0,89753.0,0.01114168]
[1767430150875,0.11846347,89759.0,89753.0,0.01114168]
[1767430151708,0.01114106,89758.0,89753.0,0.01114168]
[1767430152617,0.11588927,89761.0,89754.0,0.01114156]
[1767430152811,0.01113933,89772.0,89765.0,0.01114019]
[1767430153019,0.01116,89771.0,89769.0,0.0111397]
[1767430153233,0.01116,89771.0,89768.0,0.01113982]
[1767430154615,0.01116,89771.0,89767.0,0.01113995]
[1767430155364,0.01116,89771.0,89768.0,0.01113982]
[1767430155565,0.01116,89771.0,89767.0,0.01113995]
[1767430155806,0.01116,89771.0,89766.0,0.05570034]
[1767430156124,0.01116,89771.0,89766.0,0.01114007]
[1767430156311,0.02229945,89771.0,89766.0,0.01114007]
[1767430156480,0.01116,89771.0,89767.0,0.01113995]
[1767430157003,0.01116,89771.0,89768.0,0.01113982]
[1767430157163,0.01042511,89770.0,89768.0,0.01113982]
[1767430157365,0.00942611,89769.0,89767.0,0.01113995]
[1767430157596,0.000999,89767.0,89766.0,0.01114007]
[1767430157803,0.000999,89767.0,89764.0,0.01114032]
[1767430157968,0.000999,89767.0,89763.0,0.01114044]
[1767430158172,0.01113982,89768.0,89761.0,0.01114069]
[1767430158385,0.01113982,89768.0,89763.0,0.01114044]
[1767430158597,0.01113982,89768.0,89762.0,0.01114057]
[1767430158998,0.01114007,89766.0,89761.0,0.01114069]
[1767430159248,0.000999,89761.0,89755.0,0.01114144]
[1767430159450,0.01114081,89760.0,89754.0,0.01114156]
[1767430159623,0.01114094,89759.0,89753.0,0.02230168]
[1767430159825,0.01114106,89758.0,89753.0,0.02230168]
[1767430160271,0.01114094,89759.0,89754.0,0.01114156]
[1767430161235,0.01114106,89758.0,89753.0,0.02230168]
[1767430161454,0.01114094,89759.0,89754.0,0.01114156]
[1767430161660,0.000999,89754.0,89753.0,0.01116]
[1767430161858,0.05570782,89754.0,89753.0,0.01116]
[1767430162702,0.05570782,89754.0,89752.0,0.00015]
[1767430163126,0.05570782,89754.0,89752.0,1e-08]
[1767430163539,0.10475233,89754.0,89752.0,1e-08]
[1767430163739,0.04904451,89754.0,89752.0,1e-08]
[1767430163948,0.01114144,89755.0,89752.0,1e-08]
[1767430164137,0.06684906,89755.0,89752.0,1e-08]
[1767430164360,0.01114144,89755.0,89752.0,1e-08]
[1767430165533,0.11589355,89755.0,89752.0,1e-08]
[1767430166074,0.05570824,89754.0,89752.0,1e-08]